Cogmind - Beta 15 @@@ ROGUE MODE // 2025.05.07 @ 18:45:09 Player: f3-rnm Result: Destroyed by IL-WLN(R) with Subdweller Machine Gun Performance ------------- Evolutions (0) 0 Regions Visited (2) 400 Robots Destroyed (24) 120 Value Destroyed (460) 460 Prototype IDs (0) 0 Alien Tech Used (0) 0 Bonus (0) 0 TOTAL SCORE: 980 Bonus ------- None Cogmind --------- Core Integrity 0/250 Matter 223/300 Energy 125/125 System Corruption 0% Temperature Cool (0) Movement Core (400) Ox7 Location -10/Subcaves Parts ------- > --- POWER (1) -------- Light Ion Engine > --- PROPULSION (2) --- (None) > --- UTILITY (2) ------ Large Storage Unit > --- WEAPON (2) ------- Small Laser > --- INVENTORY (15) --- Light Ion Engine Subdweller Power Source Subdweller Power Source Wheel Wheel Wheel Disposable Heat Sink Seismic Detector EM Pulse Gun Grenade Launcher Grenade Launcher Peak State ------------ > --- POWER ------------ Light Nuclear Core > --- PROPULSION ------- Light Treads Light Treads > --- UTILITY ---------- Large Storage Unit Targeting Computer > --- WEAPON ----------- Small Laser Particle Gun > --- INVENTORY -------- Light Ion Engine Light Ion Engine Light Treads Wheel Wheel Wheel Wheel Seismic Detector Light Armor Plating EM Pulse Gun Light Assault Rifle Grenade Launcher Grenade Launcher [Rating: 11] Favorites ----------- Power Ion Engine Engine Ion Engine Power Core Light Nuclear Core Propulsion Light Treads Treads Light Treads Wheel Wheel Utility Targeting Computer Storage Large Storage Unit Processor Targeting Computer Protection Light Armor Plating Weapon Light Assault Rifle Energy Gun Small Laser Ballistic Gun Light Assault Rifle Launcher Grenade Launcher Build | -11 -10 -10 ------- Run | Yrd Mat Sub Slots Evolved . | . . . Power . | . . . Propulsion . | . . . Utility . | . . . Weapon . | . . . Parts Attached 21 | 6 6 9 Power 4 | 1 1 2 Engine 3 | 1 . 2 Core 1 | . 1 . Reactor . | . . . Propulsion 5 | 2 . 3 Treads 4 | 2 . 2 Leg . | . . . Wheel 1 | . . 1 Hover . | . . . Flight . | . . . Utility 5 | 1 3 1 Device . | . . . Storage 3 | 1 2 . Processor 1 | . 1 . Hackware . | . . . Protection 1 | . . 1 Artifact . | . . . Weapon 7 | 2 2 3 Energy Gun 3 | . 1 2 Energy Cannon . | . . . Ballistic Gun 3 | 2 . 1 Ballistic Cannon . | . . . Launcher 1 | . 1 . Special Weapon . | . . . Impact Weapon . | . . . Slashing Weapon . | . . . Piercing Weapon . | . . . Special Melee Weapon . | . . . Unidentified Prototypes . | . . . Parts Lost 13 | . 2 11 Power 3 | . 1 2 Propulsion 5 | . . 5 Utility 1 | . . 1 Weapon 4 | . 1 3 Highest Loss Streak 4 | . 1 4 To Critical Strikes . | . . . Average Backups 9 | 1 8 12 Power 1 | . 1 2 Propulsion 3 | . 2 4 Utility 1 | . 1 1 Weapon 3 | . 2 4 Tool/Special . | . . . Unused Backups 11 | . 2 9 Power 3 | . . 3 Propulsion 4 | . 1 3 Utility 2 | . . 2 Weapon 2 | . 1 1 Tool/Special . | . . . Average Slot Usage (%) 95 | . 95 96 Engine 10 | . 10 10 Core 2 | . 3 1 Treads 27 | . 27 27 Storage 14 | . 14 14 Processor 7 | . 10 3 Protection 3 | . . 9 Energy Gun 13 | . 9 20 Ballistic Gun 13 | . 17 6 Peak Build Rating 11 | 6 10 11 Average Rating 8 | 5 7 9 On Entrance 5 | . 6 10 Naked Turns . | . . . Heaviest Build 31 | 13 29 31 Greatest Support 40 | 40 40 40 Greatest Overweight (x) 2 | 1 1 2 Average Overweight (x) . | . . . Largest Inventory Capacity 15 | 8 15 15 Average Capacity 12 | 7 10 15 Most Carried 14 | 3 14 14 Average Carried 9 | 1 8 12 Final Capacity 15 | 8 15 15 Final Carried 14 | 3 14 11 Class Distribution -------------------- 98% | Mutant Dominant Class ---------------- Mutant | -10/Materials Mutant | -10/Subcaves Resources | -11 -10 -10 ----------- Run | Yrd Mat Sub Matter Collected 606 | 290 156 160 Remotely . | . . . Salvage Created 780 | 172 339 269 Parts 56 | 12 22 22 Haulers Intercepted 1 | . 1 . Recyclers Shooed 1 | 1 . . Parts Field Recycled . | . . . Retrieved Matter . | . . . Parts Self-Destructed 4 | . . 4 Prevented . | . . . Kills | -11 -10 -10 ------- Run | Yrd Mat Sub Combat Hostiles Destroyed 14 | . 6 8 Guns 11 | . 6 5 AOE 3 | . . 3 Classes Destroyed 9 | 3 4 2 Worker 2 | 1 1 . Builder 2 | . 2 . Tunneler 4 | 3 1 . Hauler 1 | . 1 . Recycler 1 | 1 . . Swarmer 5 | . 2 3 Grunt 4 | . 4 . Artisan 1 | . . 1 Subdweller 5 | . . 5 Best Kill Streak 3 | 3 3 3 Combat Bots Only 3 | . 3 3 Max Kills in Single Turn 2 | 1 1 2 Gunslinging . | . . . Exploded 2 | . . 2 Melee . | . . . Uniques/NPCs Destroyed . | . . . Combat | -11 -10 -10 -------- Run | Yrd Mat Sub Hostile Shots Fired 118 | . 66 52 Missed 32 | . 23 9 Hits 86 | . 43 43 Projectile 86 | . 43 43 Critical Strikes 4 | . 2 2 Damage Taken 1490 | . 507 983 Core 260 | . 56 204 Absorbed by Shields . | . . . Core Remaining (%) 100 | 100 . . Volleys Fired 94 | 14 44 36 Largest 2 | 2 2 2 Hottest 105 | 40 60 105 Shots Fired 164 | 28 72 64 Gun 161 | 28 71 62 Cannon . | . . . Launcher 3 | . 1 2 Special . | . . . Kinetic 108 | 28 59 21 Thermal 52 | . 12 40 Explosive 3 | . 1 2 Electromagnetic 1 | . . 1 Robot Hit Streak 17 | 9 12 17 Robot Miss Streak 3 | 1 3 3 Penetration Max . | . . . Secondary Targets . | . . . Shots Hit Robots 116 | 21 44 51 Core Hits 50 | 8 22 20 Critical Kills . | . . . Critical Parts Destroyed . | . . . Critical Strikes . | . . . Melee Attacks . | . . . Impact . | . . . Slashing . | . . . Piercing . | . . . Sneak Attacks . | . . . Combat Hostiles . | . . . Follow-up Attacks . | . . . Damage Inflicted 1290 | 209 424 657 Guns 1203 | 209 424 570 Cannons . | . . . Explosions 87 | . . 87 Melee . | . . . Ramming . | . . . Kinetic 796 | 209 371 216 Thermal 392 | . 53 339 Explosive 87 | . . 87 Electromagnetic 15 | . . 15 Impact . | . . . Slashing . | . . . Piercing . | . . . Highest Corruption . | . . . Average Corruption . | . . . Corruption Purged . | . . . Corruption Blocked . | . . . Overload Shots . | . . . Overflow Damage 12 | . . 12 Projectiles . | . . . Explosions 12 | . . 12 Melee . | . . . Knockbacks . | . . . Impact . | . . . Kinetic . | . . . Secondary . | . . . Self-Inflicted Damage 39 | . . 39 Shots 1 | . . 1 Rammed . | . . . Targets Rammed . | . . . Kicked . | . . . Crushed . | . . . Highest Temperature 219 | . 48 219 Average Temperature 29 | . 16 88 Received Heat Transfer 655 | . 258 397 Siege Activations . | . . . Martial Activations . | . . . Shielding Activations . | . . . Robots Disrupted . | . . . Combat Hostiles . | . . . Robots Corrupted . | . . . Combat Hostiles . | . . . Parts Fried . | . . . Impact Corruptions . | . . . Robots Melted . | . . . Combat Hostiles . | . . . Parts Melted 2 | . . 2 Heat Transferred 906 | . 125 781 Parts Sabotaged . | . . . Parts Stolen . | . . . Parts Stripped . | . . . Power Chain Reactions . | . . . Alert | -11 -10 -10 ------- Run | Yrd Mat Sub Maximum Alert Level . | . . . Low Security (%) 100 | 100 100 . Level 1 . | . . . Level 2 . | . . . Level 3 . | . . . Level 4 . | . . . Level 5 . | . . . High Security . | . . . Max Security . | . . . Peak Influence 98 | 10 98 . Initial 3 | . 3 . Average 19 | . 21 . Influence Increases 344 | 25 249 70 Destroy 0b10 Robot/C 180 | . 120 60 Destroy 0b10 Robot/NC 50 | 25 25 . Destroy Leader 42 | . 32 10 Successful Hack 8 | . 8 . Destroy Structure 4 | . 4 . Lose Combat Pursuer 60 | . 60 . Influence Decreases 344 | 20 234 90 Entered New Map 12 | . 2 10 Time Decay 282 | 20 222 40 Lost Part 50 | . 10 40 Squads Dispatched . | . . . Investigation . | . . . Extermination . | . . . Reinforcement . | . . . Assault . | . . . Garrison . | . . . Intercept . | . . . Searches Triggered . | . . . Construction Impeded . | . . . Haulers Reinforced . | . . . Active Scanning Responses . | . . . Cargo Convoy Interrupts . | . . . Stealth | -11 -10 -10 --------- Run | Yrd Mat Sub Distress Signals . | . . . Communications Jammed . | . . . Distress Signals . | . . . Times Spotted 26 | . 15 11 Peak Tracking Total 5 | . 5 3 Tactical Retreats 2 | . 2 . Traps | -11 -10 -10 ------- Run | Yrd Mat Sub Traps Triggered 3 | . 3 . Indirectly . | . . . Trap Hack Attempts . | . . . Triggered . | . . . Disarmed . | . . . Reprogrammed . | . . . Reused . | . . . Traps Extracted . | . . . Installed . | . . . Triggered . | . . . Machines | -11 -10 -10 ---------- Run | Yrd Mat Sub Machines Disabled . | . . . Max in Single Turn . | . . . Machines Repaired . | . . . Machines Dismantled . | . . . Machines Sabotaged . | . . . Overloaded Fab Kills . | . . . Hacking | -11 -10 -10 --------- Run | Yrd Mat Sub Machines Accessed 4 | . 4 . Terminals 4 | . 4 . Fabricators . | . . . Repair Stations . | . . . Recycling Units . | . . . Scanalyzers . | . . . Garrison Access . | . . . Total Hacks 5 | . 5 . Successful 3 | . 3 . Failed 2 | . 2 . Catastrophic . | . . . Database Lockouts . | . . . Manual 1 | . 1 . Terminals 5 | . 5 . Fabricators . | . . . Repair Stations . | . . . Recycling Units . | . . . Scanalyzers . | . . . Garrison Access . | . . . Terminal Hacks 3 | . 3 . Branch Access Points 1 | . 1 . Alert Level 1 | . 1 . Hauler Manifests 1 | . 1 . Fabricator Hacks . | . . . Repair Station Hacks . | . . . Recycling Unit Hacks . | . . . Scanalyzer . | . . . Garrison Access Hacks . | . . . Unauthorized Hacks . | . . . Terminals . | . . . Fabricators . | . . . Repair Stations . | . . . Recycling Units . | . . . Scanalyzers . | . . . Garrison Access . | . . . Data Cores Recovered . | . . . Used . | . . . Hacking Detections 2 | . 2 . Full Trace Events . | . . . Feedback Events . | . . . Feedback Blocked . | . . . Robot Schematics Acquired . | . . . Robots Built . | . . . Authchips . | . . . Time . | . . . Total Robot Build Rating . | . . . Part Schematics Acquired . | . . . Parts Built . | . . . Authchips . | . . . Time . | . . . Total Part Build Rating . | . . . Parts Repaired . | . . . Time . | . . . Parts Recycled . | . . . Recycled Matter . | . . . Retrieved Matter . | . . . Retrieved Components . | . . . Parts Scanalyzed . | . . . Part Schematics Acquired . | . . . Parts Damaged . | . . . Bothacking | -11 -10 -10 ------------ Run | Yrd Mat Sub Used RIF Installer . | . . . Robots Hacked . | . . . Non-combat . | . . . Combat . | . . . Robot Hacks Applied . | . . . Relay Couplers Released . | . . . Fabnet Peak Effective % . | . . . Robots Rewired . | . . . Allies Hacked . | . . . Hacks Repelled . | . . . Allies | -11 -10 -10 -------- Run | Yrd Mat Sub Total Allies . | . . . Largest Group . | . . . Highest-Rated Group . | . . . Highest-Rated Ally . | . . . Total Orders . | . . . Ally Attacks . | . . . Total Damage . | . . . Kills . | . . . Allies Corrupted . | . . . Allies Melted . | . . . Intel | -11 -10 -10 ------- Run | Yrd Mat Sub Active Infowar (turns) . | . . . Robot Analysis Total . | . . . Derelict Logs Recovered . | . . . Drone Launches . | . . . Drone Recoveries . | . . . Exploration | -11 -10 -10 ------------- Run | Yrd Mat Sub Turns Passed 2198 | 134 1215 849 Spaces Moved 1175 | 55 661 459 Core 6 | 6 . . Treads 1148 | 49 661 438 Legs . | . . . Wheels 21 | . . 21 Hover . | . . . Flight . | . . . Fastest Speed 50 | 50 160 110 Average Speed 159 | 152 160 157 Slowest Speed 240 | 160 240 160 Overloaded Moves . | . . . Propulsion Burnouts . | . . . Robots Hopped . | . . . Potential Cave-ins . | . . . Cave-ins Triggered . | . . . Exploration Rate (%) 35 | 4 74 27 Regions Visited 2 Branch Regions 1 Pre-discovered Areas . | . . . Known Exits Taken . | . . . Unknown Exits Taken 2 | 1 1 . Scrap Searched . | . . . Spaces Dug . | . . . Terrain Destroyed 16 | . 4 12 Melee . | . . . Projectile . | . . . AOE 16 | . 4 12 Terrain Rammed . | . . . Walls Destroyed . | . . . Machines Disabled . | . . . Actions | -11 -10 -10 --------- Run | Yrd Mat Sub Total 1347 | 77 748 522 Wait 18 | . 11 7 Move 1173 | 54 660 459 Hop . | . . . Pick Up 23 | 3 15 5 Fast Attach 16 | 6 10 . Attach 10 | . 2 8 Detach . | . . . Swap 7 | . 2 5 Drop 5 | . 4 1 Fire 94 | 14 44 36 Melee . | . . . Ram . | . . . Kick . | . . . Crush . | . . . Escape Stasis . | . . . Rewire 1 | . . 1 Trap . | . . . Miscellaneous . | . . . Route ------- -11/Scrapyard -10/Materials (discovered 5 exits: [*Mat x2] / *Min x2 / [*Sub]) -10/Subcaves History --------- Turn | Location | Event 10 | -11/Scrapyard | Discovered new exit (range 14) 135 | -11/Scrapyard | Entered Materials 180 | -10/Materials | Identified exit to Mines 307 | -10/Materials | Build established: Mutant 705 | -10/Materials | Discovered new exit (range 16) 1133 | -10/Materials | Discovered new exit (range 11) 1341 | -10/Materials | Discovered new exit (range 7) 1350 | -10/Materials | Entered Subcaves 1351 | -10/Subcaves | Approached by a straggling Scientist 1397 | -10/Subcaves | Core integrity fell below 50% 1774 | -10/Subcaves | Shifting Twisted Machinery released Battle Rifle 1776 | -10/Subcaves | Shifting Twisted Machinery released Sub. Power Source 2189 | -10/Subcaves | Lost 4 parts (1n1u2w) 2189 | -10/Subcaves | A Subdweller sparked back to life 2189 | -10/Subcaves | A Subdweller sparked back to life 2189 | -10/Subcaves | A Subdweller sparked back to life 2192 | -10/Subcaves | Core integrity fell below 20% 2199 | -10/Subcaves | Destroyed by IL-WLN(R) with Subdweller Machine Gun Last Messages --------------- 02150_ 6L-9IF(R) destroyed. 02150_ Lgt. Treads destroyed. 02154_ Critical hit (Meltdown: +250). 02157_ Subatomizers dissect the Sub. Machine Gun. 02158_ Battle Rifle destroyed. 02161_ Sub. Monowheel melted. 02161_ Disposable Heat Sink melted. 02161_ PE-K3M(R) destroyed. 02167_ Acquired 58 matter. 02176_ CQ-RFH(u) tweaks Twisted Machinery. 02179_ Acquired 12 matter. 02188_ Attempting to rewire BQ-BBT(R). 02188_ BQ-BBT(R) is broken beyond repair. 02189_ BQ-BBT(R) creaks and sparks as it begins to move. 02189_ IL-WLN(R) creaks and sparks as it begins to move. 02189_ VH-BDH(R) creaks and sparks as it begins to move. 02191_ Lgt. Treads destroyed. 02193_ BQ-BBT(R) affixes Scrap Shield Fragment to Scrap Shield. 02193_ Lgt. Assault Rifle destroyed. 02197_ Wheel destroyed. Map ----- +----------------------------------------------------+ | #??# ### #??????????????????? | | ##?## #??????????????????? | | #??# ## ####???????????????? | | ##?# ### ### ###?????????????? | | #?# ##?##### #?????????????? | | ## ##?? ### #??????????????? | | ## ####??#"## ##??????????????? | | ## ####????#" ### # ##???????????????? | | ## ####?##### ##??? #??????????????????? | | ## ## ### #????? ??????????????????? | | # #????????????????????????? | | # #####????????????????????????? | | ## ###! ###????????????????????????????? | | ####?#%& ##??????????????????????????????? | | #????#[ * #???????????????????????????????? | | #????##! ##???????????????????????????????? | | #????# ##???????????????????????????????? | | ##??## #???????????????????????????????? | | ## #### #####???????????????????????????? | | ###" # ##??????????????????????????? | | #?#" "" #??????????????????????????? | | ??#" "" ###?????????????????????????? | | ?# ##" ## ##????????????????????????? | | ?# ##" ####### ##???????????????????????? | | ?# "" #?????# ##??????????????????????? | | ?# "" #?????# @#??????????????????????? | | ?###""" #?????######RR " ???????????????????? | | ???# """ #??????????# #??????????????????? | | ??# """ #??????????# % &#??????????????????? | | ??## """ #??????????#< %